[Event "WSTCC-65 2024"]
[Site "Krakow"]
[Date "2024.07.04"]
[Round "3.15"]
[White "Povah, Nigel E"]
[Black "Lanc, Alois"]
[Result "1/2-1/2"]
[ECO "A45"]
[WhiteElo "2179"]
[BlackElo "2256"]
[Annotator "TA"]
[PlyCount "50"]
[EventDate "2024.07.01"]
[EventType "team-tourn"]
[EventCountry "POL"]
[SourceTitle "playchess.com"]
[Source "ChessBase"]
[SourceQuality "1"]
[TimeControl "40/5400+30:1800+30"]

{[%evp 11,50,9,29,37,35,8,13,9,8,0,0,0,24,23,23,25,37,33,25,27,20,17,27,-27,27,14,37,41,36,31,40,16,25,37,54,29,40,13,13,13,13]} 1. d4 {[%emt 0:00:22]} Nf6 {[%emt 0:00:28]} 2. Bg5 {[%emt 0:01:22]} c5 {[%emt 0:01:49]} 3. d5 {[%emt 0:00:15]} Ne4 {[%emt 0:00:47]} 4. Bf4 {[%emt 0:00:17]} Qb6 {[%emt 0:01:25]} 5. Bc1 {[%emt 0:00:42]} e6 {[%emt 0:02:13]} 6. f3 {[%emt 0:01:33]} Nf6 {[%emt 0:01:14]} 7. e4 {[%emt 0:00:39]} d6 {[%emt 0:07:00]} 8. Na3 {[%emt 0:20:31]} exd5 {[%emt 0:02:30]} 9. exd5 {[%emt 0:00:26]} Be7 {[%emt 0:01:50]} 10. c4 {[%emt 0:07:39]} O-O {[%emt 0:02:32]} 11. Bd3 {[%emt 0:01:40]} Qd8 {[%emt 0:06:43]} 12. Ne2 {[%emt 0:04:31]} Nbd7 {[%emt 0:00:43]} 13. f4 {[%emt 0:08:31]} Ne8 {[%emt 0:08:49]} 14. O-O {[%emt 0:02:30]} f5 {[%emt 0:01:40]} 15. Qc2 {[%emt 0:04:44]} g6 {[%emt 0:01:00]} 16. Bd2 {[%emt 0:02:32]} a6 {[%emt 0:02:52]} 17. Nb1 {[%emt 0:03:16]} ({Günstiger ist} 17. Rae1) 17... Bf6 {[%emt 0:03:24]} (17... b5 $142) 18. a4 $11 {[%emt 0:03:01]} a5 {[%emt 0:04:15]} 19. Na3 {[%emt 0:05:36]} Nb8 {[%emt 0:00:35][%cal Bd7b8,Bb8a6,Ba6c7][%mdl 32]} 20. Rae1 {[%emt 0:02:03]} Na6 {[%emt 0:01:19]} 21. Bc3 {[%emt 0:01:39]} b6 {[%emt 0:08:01]} 22. Nb5 {[%emt 0:03:25]} Nec7 {[%emt 0:03:23]} 23. Nxc7 {[%emt 0:02:11]} Nxc7 {[%emt 0:01:35]} 24. Bxf6 {[%emt 0:01:17]} Qxf6 {[%emt 0:02:26]} 25. Qc3 {[%emt 0:02:52]} Qf7 {Gewichteter Fehlerwert: Weiß=0.12 (sehr präzise) /Schwarz=0.11 (sehr präzise) .  Fehler:       	Weiß=1     	Schwarz=1     Ungenau:       	Weiß=2     	---        OK:         	Weiß=6     	Schwarz=8} 1/2-1/2

[Event "WSTCC-65 2024"]
[Site "Krakow"]
[Date "2024.07.04"]
[Round "3.15"]
[White "Marks, Ian A"]
[Black "Algars, Olle"]
[Result "0-1"]
[ECO "B24"]
[WhiteElo "1932"]
[BlackElo "1883"]
[Annotator "NA RC"]
[PlyCount "52"]
[EventDate "2024.07.01"]
[EventType "team-tourn"]
[EventCountry "POL"]
[SourceTitle "playchess.com"]
[Source "ChessBase"]
[SourceQuality "1"]
[TimeControl "40/5400+30:1800+30"]

1. e4 {[%emt 0:00:06]} c5 {[%emt 0:00:04]} 2. Nc3 {[%emt 0:00:20]} Nc6 {[%emt 0:00:05]} 3. Bb5 {[%emt 0:00:41]} g6 {[%emt 0:00:12]} 4. Bxc6 {[%emt 0:00:18]} dxc6 {[%emt 0:00:23]} 5. d3 {[%emt 0:00:24]} Bg7 {[%emt 0:01:01]} 6. f4 {[%emt 0:00:22]} Nf6 {[%emt 0:01:01]} 7. Nf3 {[%emt 0:00:10]} Bg4 {[%emt 0:00:26]} 8. O-O {[%emt 0:02:18]} Qd7 {[%emt 0:04:37]} 9. a4 {[%emt 0:04:41]} Bxf3 {[%emt 0:10:54]} 10. Qxf3 {[%emt 0:01:07]} Qg4 {[%emt 0:02:55]} 11. Qf2 {[%emt 0:09:46]} Qd7 {[%emt 0:13:07]} 12. h3 {[%emt 0:12:37]} b6 {[%emt 0:05:40]} 13. a5 {[%emt 0:04:55]} O-O {[%emt 0:06:06]} 14. Be3 {[%emt 0:08:25]} Rfd8 {[%emt 0:13:03]} 15. Na4 {[%emt 0:06:43]} Qb7 {[%emt 0:03:07]} 16. Ra3 {[%emt 0:08:20]} e6 {[%emt 0:12:36]} 17. Rfa1 {[%emt 0:10:46]} Bf8 {[%emt 0:06:17]} 18. f5 {[%emt 0:08:34]} exf5 {[%emt 0:01:40]} 19. axb6 {[%emt 0:04:28]} axb6 {[%emt 0:05:54]} 20. Rb3 {[%emt 0:02:26]} b5 {[%emt 0:02:02]} 21. Raa3 {[%emt 0:03:24]} c4 {[%emt 0:00:12]} 22. Nc5 {[%emt 0:05:23]} Bxc5 {[%emt 0:00:51]} 23. Rxa8 {[%emt 0:00:37]} Rxa8 {[%emt 0:00:08]} 24. dxc4 {[%emt 0:01:36]} Nxe4 {[%emt 0:00:18]} 25. Qf3 {[%emt 0:00:43]} Ra1+ {[%emt 0:01:00]} 26. Kh2 {[%emt 0:00:01]} Bd6+ {[%emt 0:00:26]} 0-1

[Event "WSTCC-65 2024"]
[Site "Krakow"]
[Date "2024.07.04"]
[Round "3.15"]
[White "Matthews, Gabriel"]
[Black "Reuben, Stewart"]
[Result "1/2-1/2"]
[ECO "A47"]
[WhiteElo "1917"]
[BlackElo "1995"]
[Annotator "NA RC"]
[PlyCount "58"]
[EventDate "2024.07.01"]
[EventType "team-tourn"]
[EventCountry "POL"]
[SourceTitle "playchess.com"]
[Source "ChessBase"]
[SourceQuality "1"]
[TimeControl "40/5400+30:1800+30"]

1. d4 {[%emt 0:00:07]} Nf6 {[%emt 0:00:09]} 2. Nf3 {[%emt 0:00:11]} b6 {[%emt 0:00:15]} 3. Bg5 {[%emt 0:04:45]} Ne4 {[%emt 0:02:03]} 4. Bf4 {[%emt 0:01:26]} e6 {[%emt 0:00:55]} 5. Nbd2 {[%emt 0:02:25]} Bb7 {[%emt 0:00:27]} 6. Nxe4 {[%emt 0:03:04]} Bxe4 {[%emt 0:00:15]} 7. e3 {[%emt 0:04:37]} d5 {[%emt 0:03:20]} 8. Ne5 {[%emt 0:05:16]} c6 {[%emt 0:03:10]} 9. f3 {[%emt 0:05:50]} Bg6 {[%emt 0:04:39]} 10. h4 {[%emt 0:02:42]} f6 {[%emt 0:00:50]} 11. Nxg6 {[%emt 0:01:03]} hxg6 {[%emt 0:00:13]} 12. Bd3 {[%emt 0:05:00]} Kf7 {[%emt 0:01:25]} 13. Kf2 {[%emt 0:05:33]} Bd6 {[%emt 0:01:29]} 14. Bxd6 {[%emt 0:01:59]} Qxd6 {[%emt 0:00:16]} 15. c4 {[%emt 0:04:25]} Nd7 {[%emt 0:02:48]} 16. Qc2 {[%emt 0:02:26]} f5 {[%emt 0:06:52]} 17. Rac1 {[%emt 0:06:17]} Rac8 {[%emt 0:06:02]} 18. cxd5 {[%emt 0:05:54]} cxd5 {[%emt 0:00:42]} 19. Qxc8 {[%emt 0:05:20]} Rxc8 {[%emt 0:00:10]} 20. Rxc8 {[%emt 0:00:10]} Qb4 {[%emt 0:00:52]} 21. Rhc1 {[%emt 0:07:31]} Nc5 {[%emt 0:07:24]} 22. Rc7+ {[%emt 0:05:29]} Kf6 {[%emt 0:01:50]} 23. dxc5 {[%emt 0:02:50]} Qd2+ {[%emt 0:01:41]} 24. Be2 {[%emt 0:05:03]} Qxc1 {[%emt 0:02:42]} 25. cxb6 {[%emt 0:00:26]} Qxb2 {[%emt 0:00:19]} 26. b7 {[%emt 0:01:50]} f4 {[%emt 0:01:32]} 27. Rd7 {[%emt 0:04:07]} Qb6 {[%emt 0:02:38]} 28. a4 {[%emt 0:01:52]} Qxe3+ {[%emt 0:01:48]} 29. Kf1 {[%emt 0:01:12]} Qc1+ 1/2-1/2

[Event "WSTCC-65 2024"]
[Site "Krakow"]
[Date "2024.07.04"]
[Round "3.16"]
[White "Petran, Peter"]
[Black "Beaumont, Chris R"]
[Result "1-0"]
[ECO "A00"]
[WhiteElo "2195"]
[BlackElo "2198"]
[Annotator "RC"]
[PlyCount "73"]
[EventDate "2024.07.01"]
[EventType "team-tourn"]
[EventCountry "POL"]
[SourceTitle "playchess.com"]
[Source "ChessBase"]
[SourceQuality "1"]
[TimeControl "40/5400+30:1800+30"]

1. g3 {[%emt 0:00:02]} c5 {[%emt 0:00:38]} 2. Bg2 {[%emt 0:00:06]} g6 {[%emt 0:00:12]} 3. e4 {[%emt 0:01:09]} Bg7 {[%emt 0:00:08]} 4. Ne2 Nc6 {[%emt 0:00:21]} 5. c3 {[%emt 0:00:18]} e5 {[%emt 0:00:22]} 6. d3 {[%emt 0:00:07]} Nge7 {[%emt 0:04:44]} 7. Be3 {[%emt 0:00:06]} d6 {[%emt 0:01:08]} 8. O-O {[%emt 0:00:14]} O-O {[%emt 0:00:07]} 9. d4 {[%emt 0:00:22]} exd4 {[%emt 0:01:44]} 10. cxd4 {[%emt 0:00:04]} Qb6 {[%emt 0:00:34]} 11. Nbc3 {[%emt 0:00:46]} cxd4 {[%emt 0:12:54]} 12. Na4 {[%emt 0:00:06]} Qa6 {[%emt 0:21:17]} 13. Nxd4 {[%emt 0:00:28]} Nxd4 {[%emt 0:00:25]} 14. Bxd4 {[%emt 0:00:12]} Bxd4 {[%emt 0:00:14]} 15. Qxd4 {[%emt 0:00:05]} Nc6 {[%emt 0:00:41]} 16. Qd1 {[%emt 0:00:07]} Ne5 {[%emt 0:00:29]} 17. Nc3 {[%emt 0:10:33]} Bg4 {[%emt 0:03:20]} 18. f3 {[%emt 0:03:46]} Be6 {[%emt 0:00:18]} 19. Qd4 {[%emt 0:04:18]} Rfd8 {[%emt 0:18:18]} 20. f4 {[%emt 0:03:51]} Nc6 {[%emt 0:07:14]} 21. Qf6 {[%emt 0:00:36]} Qb6+ {[%emt 0:03:46]} 22. Rf2 {[%emt 0:00:31]} Qd4 {[%emt 0:00:53]} 23. Qxd4 {[%emt 0:01:11]} Nxd4 {[%emt 0:00:01]} 24. Rd2 {[%emt 0:13:14]} Nc6 {[%emt 0:00:55]} 25. h3 {[%emt 0:03:04]} Kf8 {[%emt 0:02:47]} 26. g4 {[%emt 0:02:59]} f6 {[%emt 0:00:22]} 27. Rad1 {[%emt 0:01:58]} Ke7 {[%emt 0:00:24]} 28. b3 {[%emt 0:05:44]} a6 {[%emt 0:01:58]} 29. Na4 {[%emt 0:07:13]} g5 {[%emt 0:02:23]} 30. Nb6 {[%emt 0:00:23]} Rab8 {[%emt 0:00:02]} 31. Nd5+ {[%emt 0:04:07]} Bxd5 {[%emt 0:00:59]} 32. exd5 {[%emt 0:00:09]} Na7 {[%emt 0:01:14]} 33. Re1+ {[%emt 0:02:32]} Kd7 {[%emt 0:01:39]} 34. Be4 {[%emt 0:01:14]} h6 {[%emt 0:07:19]} 35. Bf5+ {[%emt 0:00:56]} Kc7 {[%emt 0:00:01]} 36. Re7+ {[%emt 0:05:31]} Kb6 {[%emt 0:00:03]} 37. Re6 {[%emt 0:00:08]} 1-0

[Event "WSTCC-65 2024"]
[Site "Krakow"]
[Date "2024.07.04"]
[Round "3.16"]
[White "Scowen, Roger S"]
[Black "Murray, Jim G."]
[Result "1/2-1/2"]
[ECO "B34"]
[WhiteElo "1888"]
[BlackElo "1884"]
[Annotator "NA RC"]
[PlyCount "61"]
[EventDate "2024.07.01"]
[EventType "team-tourn"]
[EventCountry "POL"]
[SourceTitle "playchess.com"]
[Source "ChessBase"]
[SourceQuality "1"]
[TimeControl "40/5400+30:1800+30"]

1. e4 {[%emt 0:00:07]} c5 {[%emt 0:00:05]} 2. Nf3 {[%emt 0:00:17]} Nc6 {[%emt 0:00:05]} 3. d4 {[%emt 0:00:10]} cxd4 {[%emt 0:00:06]} 4. Nxd4 {[%emt 0:00:03]} Nf6 {[%emt 0:00:11]} 5. Nc3 {[%emt 0:00:32]} e5 {[%emt 0:00:08]} 6. Nxc6 {[%emt 0:02:22]} bxc6 {[%emt 0:00:08]} 7. f3 {[%emt 0:05:28]} Bb4 {[%emt 0:01:52]} 8. Bd2 {[%emt 0:01:23]} d5 {[%emt 0:04:13]} 9. Bd3 {[%emt 0:14:36]} O-O {[%emt 0:05:19]} 10. O-O {[%emt 0:08:10]} Rb8 {[%emt 0:19:23]} 11. Rb1 {[%emt 0:14:16]} Bc5+ {[%emt 0:08:46]} 12. Kh1 {[%emt 0:00:07]} Be6 {[%emt 0:15:11]} 13. b3 {[%emt 0:08:13]} Nd7 {[%emt 0:04:47]} 14. f4 {[%emt 0:02:17]} f6 {[%emt 0:07:42]} 15. f5 {[%emt 0:04:28]} Bf7 {[%emt 0:00:17]} 16. Qg4 {[%emt 0:00:29]} Kh8 {[%emt 0:07:35]} 17. Rf3 {[%emt 0:01:27]} Rg8 {[%emt 0:07:18]} 18. Rh3 {[%emt 0:03:52]} g5 {[%emt 0:02:58]} 19. fxg6 Bxg6 {[%emt 0:01:00]} 20. Qh4 {[%emt 0:05:20]} d4 {[%emt 0:03:32]} 21. Ne2 {[%emt 0:06:00]} Be7 {[%emt 0:00:42]} 22. Qf2 {[%emt 0:03:44]} Nb6 {[%emt 0:03:17]} 23. Ng3 {[%emt 0:03:44]} Qe8 {[%emt 0:00:57]} 24. Nf5 {[%emt 0:03:58]} Bd8 {[%emt 0:03:41]} 25. a4 {[%emt 0:04:04]} Bxf5 {[%emt 0:01:06]} 26. Qxf5 {[%emt 0:04:31]} Qg6 {[%emt 0:00:01]} 27. Rg3 {[%emt 0:02:08]} Qxf5 {[%emt 0:00:15]} 28. Rxg8+ {[%emt 0:00:03]} Kxg8 {[%emt 0:00:02]} 29. exf5 {[%emt 0:00:03]} Kg7 {[%emt 0:02:29]} 30. g4 {[%emt 0:01:53]} Be7 {[%emt 0:00:20]} 31. Kg2 {[%emt 0:00:08]} 1/2-1/2

[Event "WSTCC-65 2024"]
[Site "Krakow"]
[Date "2024.07.04"]
[Round "3.16"]
[White "Dalling, Peter"]
[Black "McAndrew, Robert"]
[Result "1/2-1/2"]
[ECO "B11"]
[WhiteElo "1877"]
[BlackElo "1926"]
[Annotator "NA RC"]
[PlyCount "90"]
[EventDate "2024.07.01"]
[EventType "team-tourn"]
[EventCountry "POL"]
[SourceTitle "playchess.com"]
[Source "ChessBase"]
[SourceQuality "1"]
[TimeControl "40/5400+30:1800+30"]

1. e4 {[%emt 0:00:03]} c6 {[%emt 0:00:09]} 2. Nc3 {[%emt 0:00:04]} d5 {[%emt 0:00:08]} 3. Nf3 {[%emt 0:00:05]} Bg4 {[%emt 0:03:11]} 4. e5 {[%emt 0:05:16]} c5 {[%emt 0:19:10]} 5. Bb5+ {[%emt 0:03:07]} Nc6 {[%emt 0:00:17]} 6. h3 {[%emt 0:00:27]} Bxf3 {[%emt 0:01:18]} 7. Qxf3 {[%emt 0:00:14]} e6 {[%emt 0:00:25]} 8. d3 {[%emt 0:00:59]} Qc7 {[%emt 0:08:34]} 9. Bf4 {[%emt 0:08:09]} Nge7 {[%emt 0:07:42]} 10. O-O {[%emt 0:04:34]} Rd8 {[%emt 0:05:23]} 11. Rfe1 {[%emt 0:05:14]} Ng6 {[%emt 0:05:01]} 12. Bg3 {[%emt 0:03:45]} Be7 {[%emt 0:00:53]} 13. Rad1 {[%emt 0:06:29]} O-O {[%emt 0:00:27]} 14. Bxc6 {[%emt 0:00:10]} Qxc6 {[%emt 0:02:13]} 15. Qg4 {[%emt 0:06:01]} f5 {[%emt 0:06:30]} 16. exf6 {[%emt 0:03:03]} Rxf6 {[%emt 0:00:05]} 17. h4 {[%emt 0:07:25]} Nf8 {[%emt 0:04:34]} 18. h5 {[%emt 0:02:53]} Rf5 {[%emt 0:05:08]} 19. Re5 {[%emt 0:03:47]} Bf6 {[%emt 0:04:49]} 20. Rxf5 {[%emt 0:01:47]} exf5 {[%emt 0:00:04]} 21. Qxf5 {[%emt 0:00:31]} Ne6 {[%emt 0:00:43]} 22. Be5 {[%emt 0:03:48]} Nd4 {[%emt 0:03:24]} 23. Bxd4 {[%emt 0:02:09]} Bxd4 {[%emt 0:03:44]} 24. Rf1 {[%emt 0:07:54]} b5 {[%emt 0:01:50]} 25. Nd1 {[%emt 0:02:13]} Rf8 {[%emt 0:01:46]} 26. Qg4 {[%emt 0:02:26]} Qe8 {[%emt 0:07:10]} 27. c3 {[%emt 0:09:11]} Be5 {[%emt 0:00:25]} 28. g3 {[%emt 0:04:32]} Bd6 {[%emt 0:03:01]} 29. Kg2 {[%emt 0:00:20]} Qe5 {[%emt 0:00:50]} 30. Ne3 {[%emt 0:00:59]} d4 {[%emt 0:02:17]} 31. cxd4 {[%emt 0:00:33]} cxd4 {[%emt 0:00:06]} 32. Nc2 {[%emt 0:01:06]} Qd5+ {[%emt 0:00:56]} 33. Qe4 {[%emt 0:01:23]} Qf7 {[%emt 0:02:36]} 34. Nxd4 {[%emt 0:01:29]} Bc5 {[%emt 0:00:08]} 35. Nf3 {[%emt 0:00:09]} Re8 {[%emt 0:01:15]} 36. Qg4 {[%emt 0:00:42]} Qxa2 {[%emt 0:00:24]} 37. d4 {[%emt 0:00:35]} Bd6 {[%emt 0:00:43]} 38. Qd7 {[%emt 0:00:40]} Qe6 {[%emt 0:00:34]} 39. Qxa7 Qd5 {[%emt 0:00:20]} 40. Qd7 {[%emt 0:02:16]} Re4 {[%emt 0:01:42]} 41. Rc1 {[%emt 0:32:52]} Rxd4 {[%emt 0:02:09]} 42. Rc8+ {[%emt 0:00:00]} Bf8 {[%emt 0:00:04]} 43. Qxd5+ {[%emt 0:00:00]} Rxd5 {[%emt 0:00:09]} 44. g4 {[%emt 0:00:00]} Kf7 {[%emt 0:00:37]} 45. Rc6 {[%emt 0:00:00]} Be7 {[%emt 0:02:08]} 1/2-1/2

[Event "WSTCC-65 2024"]
[Site "Krakow"]
[Date "2024.07.04"]
[Round "3.17"]
[White "Beilfuss, Wilfried"]
[Black "Chubar, Vladimir"]
[Result "1/2-1/2"]
[ECO "A89"]
[WhiteElo "2059"]
[BlackElo "1836"]
[Annotator "NA RC"]
[PlyCount "57"]
[EventDate "2024.07.01"]
[EventType "team-tourn"]
[EventCountry "POL"]
[SourceTitle "playchess.com"]
[Source "ChessBase"]
[SourceQuality "1"]
[TimeControl "40/5400+30:1800+30"]

1. Nf3 {[%emt 0:00:09]} g6 {[%emt 0:00:24]} 2. d4 {[%emt 0:01:11]} Bg7 {[%emt 0:00:17]} 3. c4 {[%emt 0:00:30]} d6 {[%emt 0:00:28]} 4. g3 {[%emt 0:00:32]} f5 {[%emt 0:01:38]} 5. Bg2 {[%emt 0:01:24]} Nf6 {[%emt 0:01:49]} 6. O-O {[%emt 0:00:35]} O-O {[%emt 0:00:54]} 7. Nc3 {[%emt 0:02:46]} Nc6 {[%emt 0:02:06]} 8. d5 {[%emt 0:01:14]} Ne5 {[%emt 0:00:59]} 9. Nxe5 {[%emt 0:00:56]} dxe5 {[%emt 0:00:10]} 10. c5 {[%emt 0:03:18]} e4 {[%emt 0:06:34]} 11. Qb3 {[%emt 0:11:54]} Kh8 {[%emt 0:01:23]} 12. Rd1 {[%emt 0:01:54]} b6 {[%emt 0:09:52]} 13. f3 {[%emt 0:12:32]} bxc5 {[%emt 0:06:59]} 14. fxe4 {[%emt 0:00:41]} fxe4 {[%emt 0:05:32]} 15. Nxe4 {[%emt 0:02:54]} Nxe4 {[%emt 0:04:13]} 16. Bxe4 {[%emt 0:00:09]} Bh3 {[%emt 0:00:36]} 17. Qc2 {[%emt 0:01:47]} Qd6 {[%emt 0:07:46]} 18. Be3 {[%emt 0:01:51]} Bd4 {[%emt 0:01:04]} 19. Bxd4+ {[%emt 0:04:26]} cxd4 {[%emt 0:00:13]} 20. Qd3 {[%emt 0:02:11]} Qe5 {[%emt 0:08:18]} 21. Bf3 {[%emt 0:03:50]} Rab8 {[%emt 0:02:12]} 22. b3 {[%emt 0:00:52]} Rb4 {[%emt 0:01:06]} 23. Qd2 {[%emt 0:10:25]} a5 {[%emt 0:04:20]} 24. Rac1 {[%emt 0:00:27]} Kg7 {[%emt 0:04:29]} 25. Rc4 {[%emt 0:00:38]} Rxc4 {[%emt 0:04:36]} 26. bxc4 {[%emt 0:00:05]} Rb8 {[%emt 0:00:36]} 27. Qxd4 {[%emt 0:07:15]} Qxd4+ {[%emt 0:01:32]} 28. Rxd4 {[%emt 0:00:06]} Rb2 {[%emt 0:03:24]} 29. a3 {[%emt 0:05:01]} 1/2-1/2

[Event "WSTCC-65 2024"]
[Site "Krakow"]
[Date "2024.07.04"]
[Round "3.17"]
[White "Idesis, Yaacov"]
[Black "Thuesen, Mogens"]
[Result "0-1"]
[ECO "A13"]
[WhiteElo "1879"]
[BlackElo "2158"]
[Annotator "RC"]
[PlyCount "110"]
[EventDate "2024.07.01"]
[EventType "team-tourn"]
[EventCountry "POL"]
[SourceTitle "playchess.com"]
[Source "ChessBase"]
[SourceQuality "1"]
[TimeControl "40/5400+30:1800+30"]

1. c4 {[%emt 0:00:13]} e6 {[%emt 0:00:37]} 2. Nc3 {[%emt 0:00:08]} d5 {[%emt 0:00:07]} 3. cxd5 {[%emt 0:00:10]} exd5 {[%emt 0:00:09]} 4. d4 {[%emt 0:00:03]} Nf6 {[%emt 0:00:34]} 5. Nf3 {[%emt 0:00:30]} Be7 {[%emt 0:01:57]} 6. e3 {[%emt 0:01:41]} O-O {[%emt 0:00:11]} 7. Be2 {[%emt 0:00:17]} c6 {[%emt 0:00:39]} 8. O-O {[%emt 0:00:08]} Bf5 {[%emt 0:02:25]} 9. Nh4 {[%emt 0:01:02]} Be6 {[%emt 0:01:06]} 10. Nf3 {[%emt 0:00:58]} Nbd7 {[%emt 0:06:16]} 11. a3 {[%emt 0:02:36]} Bd6 {[%emt 0:05:12]} 12. b4 {[%emt 0:02:06]} Ne4 {[%emt 0:03:34]} 13. Nxe4 {[%emt 0:01:30]} dxe4 {[%emt 0:00:09]} 14. Nd2 {[%emt 0:00:39]} f5 {[%emt 0:02:19]} 15. Bc4 {[%emt 0:00:40]} Bd5 {[%emt 0:00:22]} 16. f4 {[%emt 0:03:57]} b5 {[%emt 0:07:09]} 17. Bxd5+ {[%emt 0:02:08]} cxd5 {[%emt 0:00:06]} 18. Nb3 {[%emt 0:01:18]} Nb6 {[%emt 0:00:21]} 19. Nc5 {[%emt 0:00:33]} Qe7 {[%emt 0:01:18]} 20. Qe2 {[%emt 0:01:58]} Nc4 {[%emt 0:00:23]} 21. Bd2 {[%emt 0:01:54]} a5 {[%emt 0:15:15]} 22. Bc3 {[%emt 0:02:15]} Ra7 {[%emt 0:02:52]} 23. Kh1 {[%emt 0:01:16]} a4 {[%emt 0:03:59]} 24. Rg1 {[%emt 0:00:51]} Rf6 {[%emt 0:07:13]} 25. g4 {[%emt 0:02:33]} fxg4 {[%emt 0:01:40]} 26. Rxg4 {[%emt 0:00:13]} Qf7 {[%emt 0:00:30]} 27. Be1 {[%emt 0:08:15]} Rg6 {[%emt 0:01:54]} 28. Bf2 {[%emt 0:01:20]} Qf5 {[%emt 0:01:29]} 29. Rxg6 {[%emt 0:01:14]} Qxg6 {[%emt 0:00:44]} 30. Rg1 {[%emt 0:00:48]} Qf5 {[%emt 0:01:13]} 31. Rg5 {[%emt 0:01:42]} Qf7 {[%emt 0:00:55]} 32. Qg4 {[%emt 0:10:39]} Bxc5 {[%emt 0:10:38]} 33. bxc5 {[%emt 0:04:53]} h6 {[%emt 0:00:13]} 34. Rf5 {[%emt 0:15:44]} Qd7 {[%emt 0:00:43]} 35. Qh5 {[%emt 0:00:23]} b4 {[%emt 0:05:43]} 36. Rxd5 {[%emt 0:00:33]} Qf7 {[%emt 0:00:11]} 37. Rd8+ {[%emt 0:01:50]} Kh7 {[%emt 0:00:07]} 38. Qxf7 {[%emt 0:04:23]} Rxf7 {[%emt 0:00:06]} 39. axb4 {[%emt 0:01:25]} Ra7 {[%emt 0:00:06]} 40. Be1 {[%emt 0:00:49]} a3 {[%emt 0:03:19]} 41. Bc3 {[%emt 0:30:55]} a2 {[%emt 0:30:49]} 42. Ba1 {[%emt 0:00:45]} Ra3 {[%emt 0:02:19]} 43. c6 {[%emt 0:05:26]} Rxe3 {[%emt 0:13:09]} 44. c7 {[%emt 0:02:49]} Re1+ {[%emt 0:00:00]} 45. Kg2 {[%emt 0:00:00]} Nb6 {[%emt 0:00:00]} 46. c8=Q {[%emt 0:00:00]} Nxc8 {[%emt 0:00:00]} 47. Rxc8 {[%emt 0:00:00]} Rxa1 {[%emt 0:00:00]} 48. Ra8 {[%emt 0:00:00]} e3 {[%emt 0:00:00]} 49. Kf3 {[%emt 0:00:00]} Rf1+ {[%emt 0:00:00]} 50. Kxe3 {[%emt 0:00:00]} a1=Q {[%emt 0:00:00]} 51. Rxa1 {[%emt 0:00:00]} Rxa1 {[%emt 0:00:00]} 52. f5 {[%emt 0:00:00]} Rb1 {[%emt 0:00:00]} 53. Ke4 {[%emt 0:00:00]} Rxb4 {[%emt 0:00:00]} 54. Ke5 {[%emt 0:00:00]} Kg8 {[%emt 0:00:00]} 55. d5 {[%emt 0:00:00]} Kf7 {[%emt 0:00:00]} 0-1

[Event "WSTCC-65 2024"]
[Site "Krakow"]
[Date "2024.07.04"]
[Round "3.18"]
[White "Dovzhenko, Viktor"]
[Black "Becker, Norbert"]
[Result "1-0"]
[ECO "A22"]
[WhiteElo "2044"]
[BlackElo "2047"]
[Annotator "NA RC"]
[PlyCount "47"]
[EventDate "2024.07.01"]
[EventType "team-tourn"]
[EventCountry "POL"]
[SourceTitle "playchess.com"]
[Source "ChessBase"]
[SourceQuality "1"]
[TimeControl "40/5400+30:1800+30"]

1. g3 {[%emt 0:00:35]} e5 {[%emt 0:01:04]} 2. c4 {[%emt 0:04:56]} Nf6 3. Nc3 {[%emt 0:01:11]} d5 {[%emt 0:03:03]} 4. cxd5 {[%emt 0:00:23]} Nxd5 {[%emt 0:00:10]} 5. Bg2 {[%emt 0:00:07]} Nb6 {[%emt 0:07:21]} 6. Nf3 {[%emt 0:01:37]} Nc6 {[%emt 0:00:20]} 7. O-O {[%emt 0:01:42]} Be7 {[%emt 0:00:53]} 8. a4 {[%emt 0:01:02]} a5 {[%emt 0:01:45]} 9. d3 {[%emt 0:02:31]} Be6 {[%emt 0:02:56]} 10. Bd2 {[%emt 0:02:28]} f6 {[%emt 0:05:24]} 11. Rc1 {[%emt 0:02:46]} Nd4 {[%emt 0:05:48]} 12. Nxd4 {[%emt 0:04:42]} exd4 {[%emt 0:00:09]} 13. Ne4 Bd5 {[%emt 0:08:23]} 14. Nc5 {[%emt 0:04:05]} Bxg2 {[%emt 0:01:50]} 15. Ne6 {[%emt 0:00:23]} Qd6 {[%emt 0:25:27]} 16. Nxc7+ {[%emt 0:01:07]} Kf7 {[%emt 0:06:50]} 17. Kxg2 {[%emt 0:01:39]} Rac8 {[%emt 0:04:14]} 18. Qb3+ {[%emt 0:03:55]} Kg6 19. Bf4 {[%emt 0:11:02]} Qb4 {[%emt 0:02:56]} 20. Qe6 {[%emt 0:00:35]} h5 {[%emt 0:05:44]} 21. Rc4 {[%emt 0:12:13]} Nxc4 {[%emt 0:10:12]} 22. Nd5 {[%emt 0:00:42]} Qc5 {[%emt 0:02:00]} 23. Nxe7+ {[%emt 0:02:10]} Kh7 {[%emt 0:00:18]} 24. Nxc8 1-0

[Event "WSTCC-65 2024"]
[Site "Krakow"]
[Date "2024.07.04"]
[Round "3.18"]
[White "Sonderstrup, Bjarne"]
[Black "Reem, Meir"]
[Result "1/2-1/2"]
[ECO "E69"]
[WhiteElo "2011"]
[BlackElo "1866"]
[Annotator "NA RC"]
[PlyCount "56"]
[EventDate "2024.07.01"]
[EventType "team-tourn"]
[EventCountry "POL"]
[SourceTitle "playchess.com"]
[Source "ChessBase"]
[SourceQuality "1"]
[TimeControl "40/5400+30:1800+30"]

1. Nf3 {[%emt 0:00:03]} Nf6 {[%emt 0:00:13]} 2. g3 {[%emt 0:00:12]} d6 {[%emt 0:00:15]} 3. d4 {[%emt 0:00:42]} c6 {[%emt 0:00:14]} 4. Bg2 {[%emt 0:00:16]} g6 {[%emt 0:00:38]} 5. O-O {[%emt 0:00:13]} Bg7 {[%emt 0:00:06]} 6. c4 {[%emt 0:00:45]} O-O {[%emt 0:00:27]} 7. Nc3 {[%emt 0:00:07]} Nbd7 {[%emt 0:03:07]} 8. e4 {[%emt 0:02:46]} e5 {[%emt 0:02:00]} 9. h3 {[%emt 0:00:59]} Qc7 {[%emt 0:05:10]} 10. Be3 {[%emt 0:00:21]} h6 {[%emt 0:00:15]} 11. Qd2 {[%emt 0:03:56]} Kh7 {[%emt 0:00:08]} 12. Rad1 {[%emt 0:04:53]} Ne8 {[%emt 0:09:39]} 13. dxe5 {[%emt 0:05:49]} Nxe5 {[%emt 0:01:36]} 14. Nxe5 {[%emt 0:00:47]} dxe5 {[%emt 0:00:15]} 15. c5 {[%emt 0:03:51]} Be6 {[%emt 0:03:23]} 16. f4 {[%emt 0:10:40]} f5 {[%emt 0:09:53]} 17. exf5 {[%emt 0:06:24]} gxf5 {[%emt 0:05:49]} 18. fxe5 {[%emt 0:06:09]} Qxe5 {[%emt 0:00:47]} 19. Rf4 {[%emt 0:00:58]} Qf6 {[%emt 0:06:52]} 20. g4 {[%emt 0:06:58]} Qg6 {[%emt 0:03:04]} 21. Rdf1 {[%emt 0:04:52]} Nc7 {[%emt 0:03:06]} 22. gxf5 {[%emt 0:02:10]} Rxf5 {[%emt 0:09:30]} 23. Rxf5 {[%emt 0:02:21]} Bxc3 {[%emt 0:00:08]} 24. Rf7+ {[%emt 0:03:19]} Bxf7 {[%emt 0:01:00]} 25. Qd7 {[%emt 0:04:04]} Kg8 {[%emt 0:08:48]} 26. bxc3 {[%emt 0:03:30]} Bd5 {[%emt 0:01:58]} 27. Qg4 {[%emt 0:03:15]} Qxg4 {[%emt 0:00:46]} 28. hxg4 {[%emt 0:00:07]} Bxg2 {[%emt 0:07:47]} 1/2-1/2